Department Family,Entity,Date,Expense Type,Expense Area,Supplier,Amount in Sterling
Companies House,CH,15/05/2020,Contract Staff         ,Accounting                    ,Hays Specialist Recruitment Ltd         ,506.88
Companies House,CH,21/05/2020,Contract Staff         ,Accounting                    ,Hays Specialist Recruitment Ltd         ,558.72
Companies House,CH,29/05/2020,Contract Staff         ,Accounting                    ,Hays Specialist Recruitment Ltd         ,608.26
Companies House,CH,06/05/2020,Contract Staff         ,Accounting                    ,Hays Specialist Recruitment Ltd         ,625.15
Companies House,CH,06/05/2020,Contract Staff         ,Accounting                    ,Hays Specialist Recruitment Ltd         ,633.6
Companies House,CH,21/05/2020,Contract Staff         ,Accounting                    ,Hays Specialist Recruitment Ltd         ,633.6
Companies House,CH,28/05/2020,Contract Staff         ,Accounting                    ,Hays Specialist Recruitment Ltd         ,633.6
Companies House,CH,29/05/2020,Contract Staff         ,Accounting                    ,Hays Specialist Recruitment Ltd         ,633.6
Companies House,CH,06/05/2020,Contract Staff         ,Accounting                    ,Hays Specialist Recruitment Ltd         ,689.09
Companies House,CH,29/05/2020,Contract Staff         ,Accounting                    ,Hays Specialist Recruitment Ltd         ,689.09
Companies House,CH,11/05/2020,Contract Staff         ,Accounting                    ,MICHAEL PAGE INTERNATIONAL RECRUITMENT  ,1211.48
Companies House,CH,21/05/2020,Contract Staff         ,Accounting                    ,Hays Specialist Recruitment Ltd         ,1379.71
Companies House,CH,04/05/2020,Contract Staff         ,Accounting                    ,MICHAEL PAGE INTERNATIONAL RECRUITMENT  ,1514.35
Companies House,CH,18/05/2020,Contract Staff         ,Accounting                    ,MICHAEL PAGE INTERNATIONAL RECRUITMENT  ,1514.35
Companies House,CH,28/05/2020,Contract Staff         ,Accounting                    ,MICHAEL PAGE INTERNATIONAL RECRUITMENT  ,1514.35
Companies House,CH,11/05/2020,Contract Staff         ,Accounting                    ,MICHAEL PAGE INTERNATIONAL RECRUITMENT  ,1600
Companies House,CH,07/05/2020,Contract Staff         ,Accounting                    ,MICHAEL PAGE INTERNATIONAL RECRUITMENT  ,1625
Companies House,CH,20/05/2020,Contract Staff         ,Accounting                    ,MICHAEL PAGE INTERNATIONAL RECRUITMENT  ,1625
Companies House,CH,26/05/2020,Contract Staff         ,Accounting                    ,MICHAEL PAGE INTERNATIONAL RECRUITMENT  ,1625
Companies House,CH,29/05/2020,Contract Staff         ,Accounting                    ,MICHAEL PAGE INTERNATIONAL RECRUITMENT  ,1625
Companies House,CH,04/05/2020,Contract Staff         ,Accounting                    ,MICHAEL PAGE INTERNATIONAL RECRUITMENT  ,2000
Companies House,CH,18/05/2020,Contract Staff         ,Accounting                    ,MICHAEL PAGE INTERNATIONAL RECRUITMENT  ,2000
Companies House,CH,28/05/2020,Contract Staff         ,Accounting                    ,MICHAEL PAGE INTERNATIONAL RECRUITMENT  ,2000
Companies House,CH,06/05/2020,Contract Staff         ,Accounting                    ,Hays Specialist Recruitment Ltd         ,3449.28
Companies House,CH,06/05/2020,Contract Staff         ,Analysis and Corporate Insight,CONCEPT RESOURCING T/A CONCEPT INFORMATION,549.51
Companies House,CH,22/05/2020,Contract Staff         ,Analysis and Corporate Insight,CONCEPT RESOURCING T/A CONCEPT INFORMATION,834.13
Companies House,CH,22/05/2020,Contract Staff         ,Analysis and Corporate Insight,CONCEPT RESOURCING T/A CONCEPT INFORMATION,834.13
Companies House,CH,15/05/2020,Contract Staff         ,Analysis and Corporate Insight,CONCEPT RESOURCING T/A CONCEPT INFORMATION,859.49
Companies House,CH,06/05/2020,Contract Staff         ,Analysis and Corporate Insight,CONCEPT RESOURCING T/A CONCEPT INFORMATION,873.58
Companies House,CH,20/05/2020,Contract Staff         ,Analysis and Corporate Insight,CONCEPT RESOURCING T/A CONCEPT INFORMATION,1056.75
Companies House,CH,06/05/2020,Contract Staff         ,Analysis and Corporate Insight,CONCEPT RESOURCING T/A CONCEPT INFORMATION,1057.95
Companies House,CH,29/05/2020,Contract Staff         ,Analysis and Corporate Insight,CONCEPT RESOURCING T/A CONCEPT INFORMATION,1127.2
Companies House,CH,15/05/2020,Contract Staff         ,Analysis and Corporate Insight,CONCEPT RESOURCING T/A CONCEPT INFORMATION,1410.6
Companies House,CH,20/05/2020,Contract Staff         ,Analysis and Corporate Insight,CONCEPT RESOURCING T/A CONCEPT INFORMATION,1410.6
Companies House,CH,29/05/2020,Contract Staff         ,Analysis and Corporate Insight,CONCEPT RESOURCING T/A CONCEPT INFORMATION,1410.6
Companies House,CH,20/05/2020,Contract Staff         ,Analysis and Corporate Insight,CONCEPT RESOURCING T/A CONCEPT INFORMATION,2015.4
Companies House,CH,20/05/2020,Contract Staff         ,Analysis and Corporate Insight,CONCEPT RESOURCING T/A CONCEPT INFORMATION,2015.4
Companies House,CH,20/05/2020,Contract Staff         ,Analysis and Corporate Insight,CONCEPT RESOURCING T/A CONCEPT INFORMATION,2519.25
Companies House,CH,29/05/2020,Contract Staff         ,Analysis and Corporate Insight,CONCEPT RESOURCING T/A CONCEPT INFORMATION,2519.25
Companies House,CH,04/05/2020,Contract Staff         ,Architecture                  ,Spring Technology Staffing Services Ltd ,1825.56
Companies House,CH,04/05/2020,Contract Staff         ,Architecture                  ,Spring Technology Staffing Services Ltd ,2738.34
Companies House,CH,04/05/2020,Contract Staff         ,Architecture                  ,Spring Technology Staffing Services Ltd ,3651.12
Companies House,CH,04/05/2020,Contract Staff         ,Architecture                  ,Spring Technology Staffing Services Ltd ,3651.12
Companies House,CH,13/05/2020,Contract Staff         ,Architecture                  ,Spring Technology Staffing Services Ltd ,3651.12
Companies House,CH,04/05/2020,Contract Staff         ,Architecture                  ,Spring Technology Staffing Services Ltd ,4563.9
Companies House,CH,11/05/2020,Contract Staff         ,Architecture                  ,Spring Technology Staffing Services Ltd ,4563.9
Companies House,CH,20/05/2020,Contract Staff         ,Architecture                  ,Spring Technology Staffing Services Ltd ,4563.9
Companies House,CH,18/05/2020,Contract Staff         ,Building Services             ,Hays Specialist Recruitment Ltd         ,1237.68
Companies House,CH,11/05/2020,Contract Staff         ,Building Services             ,Hays Specialist Recruitment Ltd         ,1567.73
Companies House,CH,21/05/2020,Contract Staff         ,Building Services             ,Hays Specialist Recruitment Ltd         ,1608.98
Companies House,CH,11/05/2020,Contract Staff         ,Change & Continuous Improvement                   ,Hays Specialist Recruitment Ltd         ,3228.34
Companies House,CH,04/05/2020,Contract Staff         ,Change & Continuous Improvement                   ,Hays Specialist Recruitment Ltd         ,4035.42
Companies House,CH,18/05/2020,Contract Staff         ,Change & Continuous Improvement                   ,Hays Specialist Recruitment Ltd         ,4035.42
Companies House,CH,28/05/2020,Contract Staff         ,Change & Continuous Improvement                   ,Hays Specialist Recruitment Ltd         ,4035.42
Companies House,CH,15/05/2020,Contract Staff         ,Edinburgh                     ,Hays Specialist Recruitment Ltd         ,582.19
Companies House,CH,15/05/2020,Contract Staff         ,Edinburgh                     ,Hays Specialist Recruitment Ltd         ,582.19
Companies House,CH,15/05/2020,Contract Staff         ,Edinburgh                     ,Hays Specialist Recruitment Ltd         ,582.19
Companies House,CH,15/05/2020,Contract Staff         ,Edinburgh                     ,Hays Specialist Recruitment Ltd         ,582.19
Companies House,CH,29/05/2020,Contract Staff         ,Edinburgh                     ,Hays Specialist Recruitment Ltd         ,582.19
Companies House,CH,29/05/2020,Contract Staff         ,Edinburgh                     ,Hays Specialist Recruitment Ltd         ,582.19
Companies House,CH,29/05/2020,Contract Staff         ,Edinburgh                     ,Hays Specialist Recruitment Ltd         ,582.19
Companies House,CH,29/05/2020,Contract Staff         ,Edinburgh                     ,Hays Specialist Recruitment Ltd         ,582.19
Companies House,CH,06/05/2020,Contract Staff         ,Edinburgh                     ,Hays Specialist Recruitment Ltd         ,727.74
Companies House,CH,06/05/2020,Contract Staff         ,Edinburgh                     ,Hays Specialist Recruitment Ltd         ,727.74
Companies House,CH,06/05/2020,Contract Staff         ,Edinburgh                     ,Hays Specialist Recruitment Ltd         ,727.74
Companies House,CH,06/05/2020,Contract Staff         ,Edinburgh                     ,Hays Specialist Recruitment Ltd         ,727.74
Companies House,CH,21/05/2020,Contract Staff         ,Edinburgh                     ,Hays Specialist Recruitment Ltd         ,727.74
Companies House,CH,21/05/2020,Contract Staff         ,Edinburgh                     ,Hays Specialist Recruitment Ltd         ,727.74
Companies House,CH,21/05/2020,Contract Staff         ,Edinburgh                     ,Hays Specialist Recruitment Ltd         ,727.74
Companies House,CH,21/05/2020,Contract Staff         ,Edinburgh                     ,Hays Specialist Recruitment Ltd         ,727.74
Companies House,CH,06/05/2020,Contract Staff         ,External Communications                ,Hays Specialist Recruitment Ltd         ,846
Companies House,CH,11/05/2020,Contract Staff         ,External Communications                ,Hays Specialist Recruitment Ltd         ,846
Companies House,CH,20/05/2020,Contract Staff         ,External Communications                ,Hays Specialist Recruitment Ltd         ,846
Companies House,CH,28/05/2020,Contract Staff         ,External Communications                ,Hays Specialist Recruitment Ltd         ,846
Companies House,CH,06/05/2020,Contract Staff         ,External Communications                ,Hays Specialist Recruitment Ltd         ,1367.88
Companies House,CH,15/05/2020,Contract Staff         ,External Communications                ,Hays Specialist Recruitment Ltd         ,1405.38
Companies House,CH,21/05/2020,Contract Staff         ,External Communications                ,Hays Specialist Recruitment Ltd         ,1452.2
Companies House,CH,07/05/2020,Contract Staff         ,HR Service delivery           ,Hays Specialist Recruitment Ltd         ,703.32
Companies House,CH,21/05/2020,Contract Staff         ,HR Service delivery           ,Hays Specialist Recruitment Ltd         ,703.32
Companies House,CH,29/05/2020,Contract Staff         ,HR Service delivery           ,Hays Specialist Recruitment Ltd         ,703.32
Companies House,CH,15/05/2020,Contract Staff         ,Internal Communications                ,Hays Specialist Recruitment Ltd         ,1741.92
Companies House,CH,06/05/2020,Contract Staff         ,Internal Communications                ,Hays Specialist Recruitment Ltd         ,2177.4
Companies House,CH,20/05/2020,Contract Staff         ,Internal Communications                ,Hays Specialist Recruitment Ltd         ,2177.4
Companies House,CH,28/05/2020,Contract Staff         ,Internal Communications                ,Hays Specialist Recruitment Ltd         ,2177.4
Companies House,CH,15/05/2020,Contract Staff         ,IT Infrastructure             ,ALEXANDER MANN SOLUTIONS                ,2373.95
Companies House,CH,22/05/2020,Contract Staff         ,IT Infrastructure             ,ALEXANDER MANN SOLUTIONS                ,2373.95
Companies House,CH,11/05/2020,Contract Staff         ,IT Infrastructure             ,Hays Specialist Recruitment Ltd         ,2600.16
Companies House,CH,12/05/2020,Contract Staff         ,IT Infrastructure             ,Spring Technology Staffing Services Ltd ,2702.4
Companies House,CH,06/05/2020,Contract Staff         ,IT Infrastructure             ,Hays Specialist Recruitment Ltd         ,3250.2
Companies House,CH,20/05/2020,Contract Staff         ,IT Infrastructure             ,Hays Specialist Recruitment Ltd         ,3250.2
Companies House,CH,28/05/2020,Contract Staff         ,IT Infrastructure             ,Hays Specialist Recruitment Ltd         ,3250.2
Companies House,CH,04/05/2020,Contract Staff         ,IT Infrastructure             ,Spring Technology Staffing Services Ltd ,3378
Companies House,CH,20/05/2020,Contract Staff         ,IT Infrastructure             ,Spring Technology Staffing Services Ltd ,3378
Companies House,CH,28/05/2020,Contract Staff         ,IT Infrastructure             ,Spring Technology Staffing Services Ltd ,3378
Companies House,CH,20/05/2020,Contract Staff         ,IT Infrastructure             ,Spring Technology Staffing Services Ltd ,3411.6
Companies House,CH,06/05/2020,Contract Staff         ,IT Infrastructure             ,Spring Technology Staffing Services Ltd ,4264.5
Companies House,CH,20/05/2020,Contract Staff         ,IT Infrastructure             ,Spring Technology Staffing Services Ltd ,4264.5
Companies House,CH,20/05/2020,Contract Staff         ,IT Infrastructure             ,Spring Technology Staffing Services Ltd ,4264.5
Companies House,CH,28/05/2020,Contract Staff         ,IT Infrastructure             ,Spring Technology Staffing Services Ltd ,4264.5
Companies House,CH,29/05/2020,Contract Staff         ,IT Infrastructure             ,ALEXANDER MANN SOLUTIONS                ,4273.11
Companies House,CH,11/05/2020,Contract Staff         ,Late Filing Penalties Accounting                ,Hays Specialist Recruitment Ltd         ,2317.34
Companies House,CH,04/05/2020,Contract Staff         ,Late Filing Penalties Accounting                ,Hays Specialist Recruitment Ltd         ,2896.68
Companies House,CH,21/05/2020,Contract Staff         ,Late Filing Penalties Accounting                ,Hays Specialist Recruitment Ltd         ,2896.68
Companies House,CH,26/05/2020,Contract Staff         ,Late Filing Penalties Accounting                ,Hays Specialist Recruitment Ltd         ,2896.68
Companies House,CH,12/05/2020,Contract Staff         ,Procurement                   ,MICHAEL PAGE INTERNATIONAL RECRUITMENT  ,1380
Companies House,CH,06/05/2020,Contract Staff         ,Procurement                   ,MICHAEL PAGE INTERNATIONAL RECRUITMENT  ,1725
Companies House,CH,20/05/2020,Contract Staff         ,Procurement                   ,MICHAEL PAGE INTERNATIONAL RECRUITMENT  ,1725
Companies House,CH,28/05/2020,Contract Staff         ,Procurement                   ,MICHAEL PAGE INTERNATIONAL RECRUITMENT  ,1725
Companies House,CH,15/05/2020,Contract Staff         ,Procurement                   ,Hays Specialist Recruitment Ltd         ,2593.01
Companies House,CH,06/05/2020,Contract Staff         ,Procurement                   ,Hays Specialist Recruitment Ltd         ,3241.26
Companies House,CH,07/05/2020,Contract Staff         ,Procurement                   ,Hays Specialist Recruitment Ltd         ,3241.26
Companies House,CH,22/05/2020,Contract Staff         ,Procurement                   ,Hays Specialist Recruitment Ltd         ,3241.26
Companies House,CH,28/05/2020,Contract Staff         ,Programme                     ,Hays Specialist Recruitment Ltd         ,672
Companies House,CH,29/05/2020,Contract Staff         ,Programme                     ,Hays Specialist Recruitment Ltd         ,1140.07
Companies House,CH,29/05/2020,Contract Staff         ,Programme                     ,Hays Specialist Recruitment Ltd         ,1242.54
Companies House,CH,11/05/2020,Contract Staff         ,Programme                     ,Hays Specialist Recruitment Ltd         ,1710.11
Companies House,CH,15/05/2020,Contract Staff         ,Programme                     ,Hays Specialist Recruitment Ltd         ,1988.06
Companies House,CH,29/05/2020,Contract Staff         ,Programme                     ,Hays Specialist Recruitment Ltd         ,1988.06
Companies House,CH,06/05/2020,Contract Staff         ,Programme                     ,Hays Specialist Recruitment Ltd         ,2060.06
Companies House,CH,11/05/2020,Contract Staff         ,Programme                     ,Hays Specialist Recruitment Ltd         ,2060.06
Companies House,CH,06/05/2020,Contract Staff         ,Programme                     ,Hays Specialist Recruitment Ltd         ,2236.57
Companies House,CH,29/05/2020,Contract Staff         ,Programme                     ,Hays Specialist Recruitment Ltd         ,2317.57
Companies House,CH,04/05/2020,Contract Staff         ,Programme                     ,Spring Technology Staffing Services Ltd ,2378.7
Companies House,CH,13/05/2020,Contract Staff         ,Programme                     ,Spring Technology Staffing Services Ltd ,2433.6
Companies House,CH,29/05/2020,Contract Staff         ,Programme                     ,Hays Specialist Recruitment Ltd         ,2485.08
Companies House,CH,11/05/2020,Contract Staff         ,Programme                     ,Hays Specialist Recruitment Ltd         ,2520
Companies House,CH,12/05/2020,Contract Staff         ,Programme                     ,Hays Specialist Recruitment Ltd         ,2534.16
Companies House,CH,22/05/2020,Contract Staff         ,Programme                     ,Hays Specialist Recruitment Ltd         ,2565.17
Companies House,CH,20/05/2020,Contract Staff         ,Programme                     ,Hays Specialist Recruitment Ltd         ,2575.08
Companies House,CH,04/05/2020,Contract Staff         ,Programme                     ,Hays Specialist Recruitment Ltd         ,2850.18
Companies House,CH,15/05/2020,Contract Staff         ,Programme                     ,Hays Specialist Recruitment Ltd         ,2850.18
Companies House,CH,06/05/2020,Contract Staff         ,Programme                     ,Spring Technology Staffing Services Ltd ,3042
Companies House,CH,20/05/2020,Contract Staff         ,Programme                     ,Spring Technology Staffing Services Ltd ,3042
Companies House,CH,28/05/2020,Contract Staff         ,Programme                     ,Spring Technology Staffing Services Ltd ,3042
Companies House,CH,04/05/2020,Contract Staff         ,Programme                     ,Hays Specialist Recruitment Ltd         ,3150
Companies House,CH,20/05/2020,Contract Staff         ,Programme                     ,Hays Specialist Recruitment Ltd         ,3150
Companies House,CH,28/05/2020,Contract Staff         ,Programme                     ,Hays Specialist Recruitment Ltd         ,3150
Companies House,CH,04/05/2020,Contract Staff         ,Programme                     ,Hays Specialist Recruitment Ltd         ,3167.7
Companies House,CH,12/05/2020,Contract Staff         ,Programme                     ,Hays Specialist Recruitment Ltd         ,3167.7
Companies House,CH,20/05/2020,Contract Staff         ,Programme                     ,Hays Specialist Recruitment Ltd         ,3167.7
Companies House,CH,28/05/2020,Contract Staff         ,Programme                     ,Hays Specialist Recruitment Ltd         ,3167.7
Companies House,CH,04/05/2020,Contract Staff         ,Programme                     ,Spring Technology Staffing Services Ltd ,3171.6
Companies House,CH,04/05/2020,Contract Staff         ,Programme                     ,Spring Technology Staffing Services Ltd ,3171.6
Companies House,CH,12/05/2020,Contract Staff         ,Programme                     ,Spring Technology Staffing Services Ltd ,3171.6
Companies House,CH,13/05/2020,Contract Staff         ,Programme                     ,Spring Technology Staffing Services Ltd ,3171.6
Companies House,CH,11/05/2020,Contract Staff         ,Programme                     ,Hays Specialist Recruitment Ltd         ,3600
Companies House,CH,04/05/2020,Contract Staff         ,Programme                     ,Spring Technology Staffing Services Ltd ,3964.5
Companies House,CH,04/05/2020,Contract Staff         ,Programme                     ,Spring Technology Staffing Services Ltd ,3964.5
Companies House,CH,06/05/2020,Contract Staff         ,Programme                     ,Spring Technology Staffing Services Ltd ,3964.5
Companies House,CH,11/05/2020,Contract Staff         ,Programme                     ,Spring Technology Staffing Services Ltd ,3964.5
Companies House,CH,18/05/2020,Contract Staff         ,Programme                     ,Spring Technology Staffing Services Ltd ,3964.5
Companies House,CH,20/05/2020,Contract Staff         ,Programme                     ,Spring Technology Staffing Services Ltd ,3964.5
Companies House,CH,28/05/2020,Contract Staff         ,Programme                     ,Spring Technology Staffing Services Ltd ,3964.5
Companies House,CH,28/05/2020,Contract Staff         ,Programme                     ,Spring Technology Staffing Services Ltd ,3964.5
Companies House,CH,13/05/2020,Contract Staff         ,Programme                     ,Spring Technology Staffing Services Ltd ,4112.4
Companies House,CH,04/05/2020,Contract Staff         ,Programme                     ,Hays Specialist Recruitment Ltd         ,4500
Companies House,CH,18/05/2020,Contract Staff         ,Programme                     ,Hays Specialist Recruitment Ltd         ,4500
Companies House,CH,26/05/2020,Contract Staff         ,Programme                     ,Hays Specialist Recruitment Ltd         ,4500
Companies House,CH,06/05/2020,Contract Staff         ,Programme                     ,Spring Technology Staffing Services Ltd ,5140.5
Companies House,CH,20/05/2020,Contract Staff         ,Programme                     ,Spring Technology Staffing Services Ltd ,5140.5
Companies House,CH,28/05/2020,Contract Staff         ,Programme                     ,Spring Technology Staffing Services Ltd ,5140.5
Companies House,CH,21/05/2020,Contract Staff         ,Programme                     ,FDM GROUP                               ,57816
Companies House,CH,12/05/2020,Contract Staff         ,Software Engineering          ,Hays Specialist Recruitment Ltd         ,3463.82
Companies House,CH,06/05/2020,Contract Staff         ,Software Engineering          ,Hays Specialist Recruitment Ltd         ,4329.78
Companies House,CH,20/05/2020,Contract Staff         ,Software Engineering          ,Hays Specialist Recruitment Ltd         ,4329.78
Companies House,CH,28/05/2020,Contract Staff         ,Software Engineering          ,Hays Specialist Recruitment Ltd         ,4329.78
Companies House,CH,29/05/2020,Contract Staff         ,Software Management           ,ALEXANDER MANN SOLUTIONS                ,1953.92
Companies House,CH,22/05/2020,Contract Staff         ,Software Management           ,ALEXANDER MANN SOLUTIONS                ,2442.4
Companies House,CH,11/05/2020,Contract Staff         ,Software Management           ,ALEXANDER MANN SOLUTIONS                ,3419.36
Companies House,CH,15/05/2020,Contract Staff         ,Software Management           ,ALEXANDER MANN SOLUTIONS                ,4396.32
Companies House,CH,18/05/2020,Air fare-Directors            ,Organisational Overheads      ,BLUE TRANSPORTATION LTD                 ,2998.1
Companies House,CH,28/05/2020,Personal Expenses name withheld,Late Filing Penalties                           ,Personal Expenses name withheld,1086.3
Companies House,CH,26/05/2020,Personal Expenses name withheld,Late Filing Penalties                           ,Personal Expenses name withheld,2856
Companies House,CH,26/05/2020,Personal Expenses name withheld,Late Filing Penalties                           ,Personal Expenses name withheld,3025.12
Companies House,CH,26/05/2020,External Managed Services,Programme                     ,FDM GROUP                               ,7176
Companies House,CH,20/05/2020,External Managed Services,Programme                     ,FDM GROUP                               ,49980
Companies House,CH,21/05/2020,External Managed Services,Programme                     ,FDM GROUP                               ,57964
Companies House,CH,11/05/2020,External Managed Services,Programme                     ,KAINOS SOFTWARE LTD                     ,58542.66
Companies House,CH,21/05/2020,External Managed Services,Programme                     ,FDM GROUP                               ,69634
Companies House,CH,20/05/2020,External Managed Services,Programme                     ,FDM GROUP                               ,74300
Companies House,CH,21/05/2020,External Managed Services,Programme                     ,FDM GROUP                               ,79546
Companies House,CH,11/05/2020,External Managed Services,Programme                     ,KAINOS SOFTWARE LTD                     ,85943
Companies House,CH,20/05/2020,External Managed Services,Programme                     ,FDM GROUP                               ,89312
Companies House,CH,11/05/2020,External Managed Services,Programme                     ,KAINOS SOFTWARE LTD                     ,113182
Companies House,CH,29/05/2020,External Managed Services,Programme                     ,KAINOS SOFTWARE LTD                     ,155277
Companies House,CH,13/05/2020,Capitalised IT Developers     ,Programme                     ,Hays Specialist Recruitment Ltd         ,3360
Companies House,CH,12/05/2020,Capitalised IT Developers     ,Programme                     ,Hays Specialist Recruitment Ltd         ,3720
Companies House,CH,06/05/2020,Capitalised IT Developers     ,Programme                     ,Hays Specialist Recruitment Ltd         ,4185
Companies House,CH,06/05/2020,Capitalised IT Developers     ,Programme                     ,Hays Specialist Recruitment Ltd         ,4200
Companies House,CH,20/05/2020,Capitalised IT Developers     ,Programme                     ,Hays Specialist Recruitment Ltd         ,4200
Companies House,CH,26/05/2020,Capitalised IT Developers     ,Programme                     ,Hays Specialist Recruitment Ltd         ,4200
Companies House,CH,20/05/2020,Capitalised IT Developers     ,Programme                     ,Hays Specialist Recruitment Ltd         ,4650
Companies House,CH,28/05/2020,Capitalised IT Developers     ,Programme                     ,Hays Specialist Recruitment Ltd         ,4650
Companies House,CH,15/05/2020,Capitalised IT Developers     ,Software Engineering          ,Hays Specialist Recruitment Ltd         ,3103.82
Companies House,CH,11/05/2020,Capitalised IT Developers     ,Software Engineering          ,Hays Specialist Recruitment Ltd         ,3879.78
Companies House,CH,22/05/2020,Capitalised IT Developers     ,Software Engineering          ,Hays Specialist Recruitment Ltd         ,3879.78
Companies House,CH,12/05/2020,Car parking contract          ,Northern Ireland              ,CBRE NI LIMITED                         ,1050
Companies House,CH,29/05/2020,CE Misc Additions TY          ,Covid 19 Activity             ,Kodak Alaris Ltd                        ,4601.04
Companies House,CH,06/05/2020,CE Misc Additions TY          ,IT Infrastructure             ,Probrand Ltd                            ,984.75
Companies House,CH,06/05/2020,CE Misc Additions TY          ,IT Infrastructure             ,Probrand Ltd                            ,8284.04
Companies House,CH,04/05/2020,CHD Invoice Printing          ,Accounting                    ,PARAGON CUSTOMER COMMUNICATIONS (LONDON),640.55
Companies House,CH,14/05/2020,Circuit Rental                ,IT Infrastructure             ,AdEPT Telecom PLC                       ,4306.34
Companies House,CH,19/05/2020,Circuit Rental                ,IT Infrastructure             ,Virgin Media Business                   ,4387.85
Companies House,CH,15/05/2020,Cloud Services                ,Platform Engineering          ,Amazon Web Services                     ,1317.23
Companies House,CH,15/05/2020,Cloud Services                ,Platform Engineering          ,Amazon Web Services                     ,12574.89
Companies House,CH,15/05/2020,Cloud Services                ,Platform Engineering          ,Amazon Web Services                     ,48857.92
Companies House,CH,13/05/2020,Cloud Services                ,Software Management           ,Amazon Web Services                     ,1549.24
Companies House,CH,05/05/2020,Cloud Services                ,Software Management           ,Amazon Web Services                     ,1571.2
Companies House,CH,05/05/2020,Cloud Services                ,Software Management           ,Amazon Web Services                     ,1592.03
Companies House,CH,05/05/2020,Cloud Services                ,Software Management           ,Amazon Web Services                     ,1818.73
Companies House,CH,05/05/2020,Cloud Services                ,Software Management           ,Amazon Web Services                     ,2094.93
Companies House,CH,05/05/2020,Cloud Services                ,Software Management           ,Amazon Web Services                     ,2442.15
Companies House,CH,05/05/2020,Cloud Services                ,Software Management           ,Amazon Web Services                     ,2908.19
Companies House,CH,05/05/2020,Cloud Services                ,Software Management           ,Amazon Web Services                     ,3235.59
Companies House,CH,05/05/2020,Cloud Services                ,Software Management           ,Amazon Web Services                     ,4189.06
Companies House,CH,05/05/2020,Cloud Services                ,Software Management           ,Amazon Web Services                     ,4246.28
Companies House,CH,05/05/2020,Cloud Services                ,Software Management           ,Amazon Web Services                     ,9078.2
Companies House,CH,05/05/2020,Cloud Services                ,Software Management           ,Amazon Web Services                     ,9788.3
Companies House,CH,05/05/2020,Cloud Services                ,Software Management           ,Amazon Web Services                     ,12594.06
Companies House,CH,05/05/2020,Cloud Services                ,Software Management           ,Amazon Web Services                     ,54629.39
Companies House,CH,14/05/2020,Legal Disbursements,Late Filing Penalties Accounting                ,AKINIKA DEBT RECOVERY LIMITED           ,3944.75
Companies House,CH,14/05/2020,Legal Disbursements,Late Filing Penalties Edinburgh                 ,AKINIKA DEBT RECOVERY LIMITED           ,8615.91
Companies House,CH,20/05/2020,Communications Equipment Additions TY      ,IT Infrastructure             ,Computacenter (GCAT)                    ,70527.12
Companies House,CH,11/05/2020,Communications Equipment Additions TY      ,External Communications                ,Golley Slater & Partners Ltd            ,53275.94
Companies House,CH,18/05/2020,Consultants Computer          ,Accounting                    ,Advanced Business Solutions             ,552.03
Companies House,CH,18/05/2020,Consultants Computer          ,Accounting                    ,Advanced Business Solutions             ,625.99
Companies House,CH,18/05/2020,Consultants Computer          ,Accounting                    ,Advanced Business Solutions             ,625.99
Companies House,CH,18/05/2020,Consultants Computer          ,Accounting                    ,Advanced Business Solutions             ,1877.97
Companies House,CH,18/05/2020,Consultants Computer          ,Accounting                    ,Advanced Business Solutions             ,2503.96
Companies House,CH,21/05/2020,Consultants Computer          ,HR Strategy & Policy          ,MHR                                     ,2124
Companies House,CH,22/05/2020,Consultants Management        ,Building Services             ,ARCADIS LLP                             ,1687.5
Companies House,CH,13/05/2020,Contact Centre                ,CDD Cardiff                   ,Serco Limited                           ,179519.95
Companies House,CH,29/05/2020,Electricity                   ,Building Services             ,E D F ENERGY CUSTOMERS PLC              ,44823.07
Companies House,CH,18/05/2020,Electricity                   ,Edinburgh                     ,Scottish Hydro Electric                 ,646.72
Companies House,CH,22/05/2020,Electricity                   ,Northern Ireland              ,Power NI                                ,1102.17
Companies House,CH,28/05/2020,EST Additions This Year       ,Covid 19 Activity             ,COMBINED OFFICE INTERIORS LTD           ,607
Companies House,CH,13/05/2020,EST Additions This Year       ,Covid 19 Activity             ,COMBINED OFFICE INTERIORS LTD           ,610
Companies House,CH,13/05/2020,EST Additions This Year       ,Covid 19 Activity             ,COMBINED OFFICE INTERIORS LTD           ,732
Companies House,CH,13/05/2020,EST Additions This Year       ,Covid 19 Activity             ,COMBINED OFFICE INTERIORS LTD           ,1300
Companies House,CH,13/05/2020,EST Additions This Year       ,Covid 19 Activity             ,COMBINED OFFICE INTERIORS LTD           ,1686.5
Companies House,CH,13/05/2020,EST Additions This Year       ,Covid 19 Activity             ,COMBINED OFFICE INTERIORS LTD           ,2018.5
Companies House,CH,13/05/2020,EST Additions This Year       ,Covid 19 Activity             ,COMBINED OFFICE INTERIORS LTD           ,2961
Companies House,CH,13/05/2020,EST Additions This Year       ,Covid 19 Activity             ,COMBINED OFFICE INTERIORS LTD           ,3016
Companies House,CH,13/05/2020,EST Additions This Year       ,Covid 19 Activity             ,COMBINED OFFICE INTERIORS LTD           ,3640.5
Companies House,CH,28/05/2020,EST Additions This Year       ,Covid 19 Activity             ,COMBINED OFFICE INTERIORS LTD           ,8862.5
Companies House,CH,20/05/2020,EST Additions This Year       ,Covid 19 Activity             ,COMBINED OFFICE INTERIORS LTD           ,15314
Companies House,CH,26/05/2020,External managed services     ,Programme                     ,FDM GROUP                               ,23960
Companies House,CH,11/05/2020,External managed services     ,Programme                     ,KAINOS SOFTWARE LTD                     ,53332.2
Companies House,CH,20/05/2020,External managed services     ,Programme                     ,FDM GROUP                               ,58204
Companies House,CH,11/05/2020,External managed services     ,Programme                     ,KAINOS SOFTWARE LTD                     ,59079.35
Companies House,CH,11/05/2020,External managed services     ,Programme                     ,KAINOS SOFTWARE LTD                     ,63640
Companies House,CH,22/05/2020,External managed services     ,Programme                     ,KAINOS SOFTWARE LTD                     ,83959.4
Companies House,CH,26/05/2020,Gas                           ,Building Services             ,CORONA ENERGY RETAIL 4 LTD              ,864.97
Companies House,CH,15/05/2020,Gazette Notices               ,Create & Close a company                ,Stationery Office                       ,1320
Companies House,CH,07/05/2020,Gazette Notices               ,Create & Close a company                ,Stationery Office                       ,1320
Companies House,CH,04/05/2020,Gazette Notices               ,Create & Close a company                ,Stationery Office                       ,8497.64
Companies House,CH,11/05/2020,Gazette Notices               ,Create & Close a company                ,Stationery Office                       ,8497.64
Companies House,CH,21/05/2020,Hardware & Software Maintenance ,IT Infrastructure             ,FREEDOM COMMUNICATIONS (UK) LIMITED     ,15002
Companies House,CH,20/05/2020,Hardware & Software Maintenance ,Procurement                   ,MHR                                     ,2439.84
Companies House,CH,14/05/2020,Hardware & Software Maintenance ,Procurement                   ,Docstor Ltd                             ,7075
Companies House,CH,11/05/2020,Hardware & Software Maintenance ,Software Management           ,The Insolvency Service                  ,6208
Companies House,CH,28/05/2020,Hardware & Software Maintenance ,Software Management           ,EDM Group Ltd                           ,23301.5
Companies House,CH,22/05/2020,Hardware & Software Maintenance ,Software Management           ,EGGPLANT LIVE LTD                       ,55950
Companies House,CH,06/05/2020,Hardware & Software Maintenance ,Software Management           ,CoreFiling                              ,67313.56
Companies House,CH,14/05/2020,Legal Disbursements           ,Late Filing Penalties Accounting                ,AKINIKA DEBT RECOVERY LIMITED           ,33040
Companies House,CH,14/05/2020,Legal Disbursements           ,Late Filing Penalties Edinburgh                 ,AKINIKA DEBT RECOVERY LIMITED           ,572.45
Companies House,CH,22/05/2020,Telephone Costs,IT Infrastructure             ,TELEFONICA UK LTD                       ,9218.56
Companies House,CH,11/05/2020,MV Additions This Year        ,Covid 19 Activity             ,COMBINED OFFICE INTERIORS LTD           ,506
Companies House,CH,11/05/2020,MV Additions This Year        ,Covid 19 Activity             ,COMBINED OFFICE INTERIORS LTD           ,2628.5
Companies House,CH,11/05/2020,MV Additions This Year        ,Covid 19 Activity             ,COMBINED OFFICE INTERIORS LTD           ,2810.5
Companies House,CH,11/05/2020,MV Additions This Year        ,Covid 19 Activity             ,COMBINED OFFICE INTERIORS LTD           ,5798.5
Companies House,CH,11/05/2020,MV Additions This Year        ,Covid 19 Activity             ,COMBINED OFFICE INTERIORS LTD           ,12836
Companies House,CH,14/05/2020,Occupational Health Contract  ,Building Services             ,PEOPLE ASSET MANAGEMENT GROUP LTD       ,2016
Companies House,CH,14/05/2020,Occupational Health Contract  ,Building Services             ,PEOPLE ASSET MANAGEMENT GROUP LTD       ,2016
Companies House,CH,14/05/2020,Occupational Health Contract  ,Building Services             ,PEOPLE ASSET MANAGEMENT GROUP LTD       ,2396
Companies House,CH,29/05/2020,Occupational Health Contract  ,Building Services             ,PEOPLE ASSET MANAGEMENT GROUP LTD       ,2776
Companies House,CH,27/05/2020,payroll and e5 Maintenance    ,Accounting                    ,Advanced Business Solutions             ,180571.02
Companies House,CH,27/05/2020,payroll and e5 Maintenance    ,IPO Finance App               ,Advanced Business Solutions             ,556.12
Companies House,CH,27/05/2020,payroll and e5 Maintenance    ,IPO Finance App               ,Advanced Business Solutions             ,27533.17
Companies House,CH,27/05/2020,payroll and e5 Maintenance    ,Late Filing Penalties Accounting                ,Advanced Business Solutions             ,36720.22
Companies House,CH,06/05/2020,Print and Mailing Contract    ,CDD Cardiff                   ,APS GROUP                               ,1118.63
Companies House,CH,06/05/2020,Print and Mailing Contract    ,CDD Cardiff                   ,APS GROUP                               ,1450.64
Companies House,CH,06/05/2020,Print and Mailing Contract    ,CDD Cardiff                   ,APS GROUP                               ,5357.57
Companies House,CH,06/05/2020,Print and Mailing Contract    ,CDD Cardiff                   ,APS GROUP                               ,29395.9
Companies House,CH,06/05/2020,Print and Mailing Contract    ,CDD Cardiff                   ,APS GROUP                               ,30300.81
Companies House,CH,20/05/2020,Print and Mailing Contract    ,CDD Cardiff                   ,APS GROUP                               ,36375.35
Companies House,CH,06/05/2020,Print and Mailing Contract    ,CDD Cardiff                   ,APS GROUP                               ,43287.48
Companies House,CH,04/05/2020,Print and Mailing Contract    ,CDD Cardiff                   ,APS GROUP                               ,70875.38
Companies House,CH,29/05/2020,Print and Mailing Contract    ,CDD Cardiff                   ,APS GROUP                               ,71037.52
Companies House,CH,20/05/2020,Print and Mailing Contract    ,CDD Cardiff                   ,APS GROUP                               ,106849.99
Companies House,CH,14/05/2020,Print and Mailing Contract    ,Late Filing Penalties                           ,A McLay & Company Ltd                   ,1233.4
Companies House,CH,14/05/2020,Print and Mailing Contract    ,Late Filing Penalties                           ,A McLay & Company Ltd                   ,1416.51
Companies House,CH,14/05/2020,Print and Mailing Contract    ,Late Filing Penalties                           ,A McLay & Company Ltd                   ,1572.8
Companies House,CH,14/05/2020,Print and Mailing Contract    ,Late Filing Penalties                           ,A McLay & Company Ltd                   ,2446.75
Companies House,CH,14/05/2020,Print and Mailing Contract    ,Late Filing Penalties                           ,A McLay & Company Ltd                   ,3267.96
Companies House,CH,12/05/2020,Professional Fees             ,Accounting                    ,CUSHMAN & WAKEFIELD                     ,4000
Companies House,CH,28/05/2020,Professional Fees             ,IT Infrastructure             ,Computacenter (GCAT)                    ,6062.88
Companies House,CH,15/05/2020,Professional Fees             ,IT Infrastructure             ,STABLE LOGIC LTD                        ,9000
Companies House,CH,07/05/2020,Professional Fees             ,Programme                     ,TRICORDANT                              ,3750
Companies House,CH,26/05/2020,Professional Fees             ,Software Management           ,EDM Group Ltd                           ,17000
Companies House,CH,26/05/2020,Rates,Edinburgh                     ,The City of Edinburgh Council           ,7083
Companies House,CH,26/05/2020,Rates,Building Services             ,City of Westminster,2944
Companies House,CH,26/05/2020,Rates,Building Services             ,City of Westminster,1934
Companies House,CH,14/05/2020,Recruitment Expenses          ,HR Service delivery           ,MICHAEL PAGE INTERNATIONAL RECRUITMENT  ,514.08
Companies House,CH,26/05/2020,Recruitment Expenses          ,HR Service delivery           ,MICHAEL PAGE INTERNATIONAL RECRUITMENT  ,587.52
Companies House,CH,14/05/2020,Recruitment Expenses          ,HR Service delivery           ,MICHAEL PAGE INTERNATIONAL RECRUITMENT  ,642.6
Companies House,CH,20/05/2020,Recruitment Expenses          ,HR Service delivery           ,MICHAEL PAGE INTERNATIONAL RECRUITMENT  ,642.6
Companies House,CH,15/05/2020,Recruitment Expenses          ,HR Service delivery           ,MICHAEL PAGE INTERNATIONAL RECRUITMENT  ,1028.16
Companies House,CH,11/05/2020,Rent                          ,Edinburgh                     ,KNIGHT FRANK                            ,65480
Companies House,CH,12/05/2020,Rent                          ,Northern Ireland              ,CBRE NI LIMITED                         ,24405.3
Companies House,CH,12/05/2020,Rent                          ,Northern Ireland              ,CBRE NI LIMITED                         ,1005
Companies House,CH,06/05/2020,Restaurant Services           ,Building Services             ,THE VENDING PEOPLE                      ,957.84
Companies House,CH,11/05/2020,Restaurant Services           ,Building Services             ,ARAMARK                                 ,9074.58
Companies House,CH,07/05/2020,Rolling Maintenance & minor contracts,Building Services             ,ROB MORRIS PLANT HIRE LTD               ,720
Companies House,CH,27/05/2020,Rolling Maintenance & minor contracts,Building Services             ,COMBINED OFFICE INTERIORS LTD           ,5743.86
Companies House,CH,13/05/2020,Postage,"DMS, Repos and IDT            ",Royal Mail                              ,1093.57
Companies House,CH,13/05/2020,Postage,"DMS, Repos and IDT            ",Royal Mail                              ,2446.93
Companies House,CH,13/05/2020,Postage,"DMS, Repos and IDT            ",Royal Mail                              ,3215.3
Companies House,CH,26/05/2020,Postage,Edinburgh                     ,Royal Mail                              ,512.67
Companies House,CH,11/05/2020,Service charges               ,Edinburgh                     ,KNIGHT FRANK                            ,13683.67
Companies House,CH,12/05/2020,Service charges               ,Northern Ireland              ,CBRE NI LIMITED                         ,7840.24
Companies House,CH,12/05/2020,Software as a service         ,IT Infrastructure             ,GRANICUS                                ,581
Companies House,CH,21/05/2020,Software as a service         ,IT Infrastructure             ,GRANICUS                                ,581
Companies House,CH,11/05/2020,Software as a service         ,IT Infrastructure             ,BYTES SOFTWARE SERVICES LIMITED         ,14996.65
Companies House,CH,15/05/2020,Software as a service         ,IT Infrastructure             ,E2E ASSURE                              ,19935
Companies House,CH,12/05/2020,Software as a service         ,Software Engineering          ,PLURALSIGHT LLC                         ,73574.68
Companies House,CH,12/05/2020,Software Licence              ,Software Engineering          ,Sight & Sound Technology Ltd            ,17251.5
Companies House,CH,04/05/2020,Stationery & Consumables      ,"DMS, Repos and IDT            ",APS GROUP                               ,6890
Companies House,CH,18/05/2020,Subscriptions                 ,Directorate                   ,Public Chairs Forum                     ,625
Companies House,CH,13/05/2020,Subscriptions                 ,Directorate                   ,Association of Chief Executives         ,650
Companies House,CH,15/05/2020,Telephone Costs,IT Infrastructure             ,British Telecom PLC                     ,1539.06
Companies House,CH,15/05/2020,Telephone Costs,IT Infrastructure             ,British Telecom PLC                     ,21662.29
Companies House,CH,14/05/2020,Training External             ,Training                      ,CSL-KPMG LLP                            ,2500
Companies House,CH,21/05/2020,Training External             ,Training                      ,MIND GYM LIMITED                        ,3600
Companies House,CH,04/05/2020,Wood Pellets                  ,Building Services             ,AMP CLEAN ENERGY                        ,4097.06
